bitfinex-derivatives/quotes_BTCF0:USTF0_20250928
["timestamp","ask_amount","ask_price","bid_price","bid_amount"]
[1759092698221,1.80425245,110890.0,110880.0,0.4871333]
[1759092698925,0.98253245,110890.0,110880.0,0.4871333]
[1759092699229,1.80421245,110890.0,110880.0,0.4871333]
[1759092699731,1.80421245,110890.0,110880.0,0.39698]
[1759092700133,1.77175328,110890.0,110880.0,0.39698]
[1759092700735,1.75556582,110890.0,110880.0,0.39698]
[1759092701035,1.75556582,110890.0,110880.0,0.03618]
[1759092701234,1.75556582,110890.0,110880.0,0.39698]
[1759092702126,1.08450538,110890.0,110880.0,0.39698]
[1759092702326,1.75556582,110890.0,110880.0,0.39698]
[1759092703033,1.80420381,110890.0,110880.0,0.39698]
[1759092708738,1.80416381,110890.0,110880.0,0.39698]
[1759092709133,1.80425227,110890.0,110880.0,0.39698]
[1759092709335,1.79425227,110890.0,110880.0,0.39698]
[1759092709540,1.80425227,110890.0,110880.0,0.39698]
[1759092710544,1.80625227,110890.0,110880.0,0.4871333]
[1759092711340,1.81319227,110890.0,110880.0,0.38358]
[1759092711548,1.78074174,110890.0,110880.0,0.38358]
[1759092712143,1.8132032,110890.0,110880.0,0.38358]
[1759092713251,1.8132032,110890.0,110880.0,0.4737332]
[1759092714449,1.8062632,110890.0,110880.0,0.4868432]
[1759092716149,0.9846232,110890.0,110880.0,0.4868432]
[1759092716349,1.8061832,110890.0,110880.0,0.4868432]
[1759092716951,1.75754521,110890.0,110880.0,0.4868432]
[1759092720953,1.08644477,110890.0,110880.0,0.4868432]
[1759092721252,1.75750521,110890.0,110880.0,0.4868432]
[1759092721453,0.38486921,110890.0,110880.0,1.58317342]
[1759092721654,1.20638921,110890.0,110880.0,1.58317342]
[1759092724153,1.20638921,110890.0,110880.0,1.2476432]
[1759092724457,1.20638921,110890.0,110880.0,1.58317342]
[1759092724658,1.20638921,110890.0,110880.0,1.2476432]
[1759092730058,0.38486921,110890.0,110880.0,1.2476432]
[1759092730255,1.20626921,110890.0,110880.0,1.2476432]
[1759092734165,0.87073899,110890.0,110880.0,1.2476432]
[1759092734364,1.20626921,110890.0,110880.0,1.2476432]
[1759092743572,1.29641381,110890.0,110880.0,1.2476432]
[1759092744570,1.63194403,110890.0,110880.0,1.2476432]
[1759092749273,0.96088359,110890.0,110880.0,1.2476432]
[1759092749474,1.63194403,110890.0,110880.0,1.2476432]
[1759092752673,0.81054403,110890.0,110880.0,1.2476432]
[1759092752872,0.04933899,110890.0,110880.0,1.91870364]
[1759092753071,0.04933899,110890.0,110880.0,1.19710364]
[1759092753367,0.36799168,110920.0,110910.0,0.12625]
[1759092753677,0.11919856,110930.0,110920.0,0.1262418]
[1759092753678,0.12472203,110930.0,110920.0,0.1262418]
[1759092753872,0.56376203,110930.0,110920.0,0.1262418]
[1759092754074,0.46025225,110930.0,110920.0,0.1262418]
[1759092754375,1.21772219,110930.0,110920.0,0.03612]
[1759092754574,0.05416146,110930.0,110920.0,0.39692]
[1759092754775,1.21832219,110930.0,110920.0,0.39692]
[1759092755274,0.88306,110930.0,110920.0,0.39692]
[1759092755581,0.88306,110930.0,110920.0,0.40700634]
[1759092755582,1.23132219,110930.0,110920.0,0.40700634]
[1759092756082,1.25824219,110930.0,110920.0,0.40700634]
[1759092757583,1.25824219,110930.0,110920.0,0.39792]
[1759092757782,1.24924219,110930.0,110920.0,0.39792]
[1759092757981,1.33135629,110930.0,110920.0,0.38336]
[1759092758783,1.24124219,110930.0,110920.0,0.38336]
[1759092759586,1.23984219,110930.0,110920.0,0.38336]
[1759092760186,0.37988219,110930.0,110920.0,0.38336]
[1759092760380,1.23972219,110930.0,110920.0,0.38336]
[1759092760581,0.37988219,110930.0,110920.0,0.38336]
[1759092760777,1.24004219,110930.0,110920.0,0.4734809]
[1759092760982,0.37988219,110930.0,110920.0,0.4734809]
[1759092761288,1.23992219,110930.0,110920.0,0.4734809]
[1759092762684,1.33003539,110930.0,110920.0,0.38336]
[1759092762881,0.46999539,110930.0,110920.0,0.38336]
[1759092763081,1.33035539,110930.0,110920.0,0.38336]
[1759092763691,1.33035539,110930.0,110920.0,0.4734818]
[1759092765385,1.35463717,110930.0,110920.0,0.4734818]
[1759092765881,0.40416397,110930.0,110920.0,0.4734818]
[1759092766086,1.26332397,110930.0,110920.0,0.4870418]
[1759092768195,1.26032397,110930.0,110920.0,0.4870418]
[1759092768493,0.39616397,110930.0,110920.0,0.4870418]
[1759092768695,1.25528397,110930.0,110920.0,0.4880418]
[1759092772099,1.23100219,110930.0,110920.0,0.4880418]
[1759092774107,1.25270333,110930.0,110920.0,0.4880418]
[1759092777700,1.35281683,110930.0,110920.0,0.4880418]
[1759092777903,1.26270333,110930.0,110920.0,0.4880418]
[1759092780005,1.35281683,110930.0,110920.0,0.4880418]
[1759092780210,1.35281683,110930.0,110920.0,0.4744818]
[1759092782212,1.01755464,110930.0,110920.0,0.4744818]
[1759092782412,1.26270333,110930.0,110920.0,0.4744818]
[1759092785415,1.25714333,110930.0,110920.0,0.4744818]
[1759092786615,1.34725793,110930.0,110920.0,0.4744818]
[1759092786811,1.34725793,110930.0,110920.0,0.0911218]
[1759092787515,1.74725793,110930.0,110920.0,0.001]
[1759092787818,2.52441957,110930.0,110920.0,0.001]
[1759092788016,2.15669592,110930.0,110920.0,0.001]
[1759092788216,2.18915649,110930.0,110920.0,0.001]
[1759092788517,2.1405185,110930.0,110920.0,0.001]
[1759092789918,0.1248508,110910.0,110900.0,0.1112889]
[1759092790120,1.66927632,110910.0,110900.0,0.1112889]
[1759092790518,1.66883632,110910.0,110900.0,0.1112889]
[1759092791112,1.66883632,110910.0,110900.0,0.1182889]
[1759092792215,1.66883632,110910.0,110900.0,0.1202889]
[1759092792420,1.66883632,110910.0,110900.0,0.03015]
[1759092792620,2.02963632,110910.0,110900.0,0.03015]
[1759092794716,2.02963632,110910.0,110900.0,0.009]
[1759092794920,2.42963632,110910.0,110900.0,0.009]
[1759092795122,2.50078637,110910.0,110900.0,0.009]
[1759092795718,0.1112552,110880.0,110870.0,0.4860288]
[1759092795917,0.44651739,110880.0,110870.0,0.49514295]
[1759092796818,0.44651739,110880.0,110870.0,0.50314295]
[1759092797119,0.45930739,110880.0,110870.0,0.5090288]
[1759092797617,0.79456958,110880.0,110870.0,0.4950788]
[1759092797819,0.48062438,110880.0,110870.0,0.4950788]
[1759092798020,1.33082438,110880.0,110870.0,0.4950788]
[1759092798218,1.33074438,110880.0,110870.0,0.1342788]
[1759092800332,1.30942739,110880.0,110870.0,0.1342788]
[1759092800825,0.45930739,110880.0,110870.0,0.1342788]
[1759092801126,1.30874739,110880.0,110870.0,0.1342788]
[1759092801427,0.45930739,110880.0,110870.0,0.04412]
[1759092801728,1.30834739,110880.0,110870.0,0.04412]
[1759092801924,0.45930739,110880.0,110870.0,0.04412]
[1759092802226,1.33142394,110880.0,110870.0,0.04412]
[1759092802421,1.69222394,110880.0,110870.0,0.04412]
[1759092802626,1.69222394,110880.0,110870.0,0.1192833]
[1759092802925,1.69222394,110880.0,110870.0,0.1282833]
[1759092803120,0.84318394,110880.0,110870.0,0.1252833]
[1759092803329,1.69182394,110880.0,110870.0,0.1252833]
[1759092803521,1.69382394,110880.0,110870.0,0.1162833]
[1759092803722,1.69382394,110880.0,110870.0,0.1112833]
[1759092804016,0.84718394,110880.0,110870.0,0.1112833]
[1759092804222,1.69574394,110880.0,110870.0,0.1112833]
[1759092805529,1.69554394,110880.0,110870.0,0.1112833]
[1759092806530,1.69518394,110880.0,110870.0,0.1112833]
[1759092807132,1.33438394,110880.0,110870.0,0.1112833]
[1759092807430,1.69518394,110880.0,110870.0,0.1112833]
[1759092807629,0.84718394,110880.0,110870.0,0.1112833]
[1759092807833,1.69490394,110880.0,110870.0,0.1112833]
[1759092808329,1.69474394,110880.0,110870.0,0.1112833]
[1759092808722,1.33394394,110880.0,110870.0,0.1112833]
[1759092809123,0.48638394,110880.0,110870.0,0.1112833]
[1759092809431,1.33386394,110880.0,110870.0,0.1112833]
[1759092809825,0.48638394,110880.0,110870.0,0.1112833]
[1759092810126,0.89521655,110880.0,110870.0,0.82131549]
[1759092810331,0.89513655,110880.0,110870.0,0.82131549]
[1759092810731,0.04817655,110880.0,110870.0,0.4860533]
[1759092810932,0.0251,110880.0,110870.0,0.8860533]
[1759092811432,0.87182,110880.0,110870.0,0.8860533]
[1759092811633,0.87182,110880.0,110870.0,1.22131549]
[1759092812137,0.87182,110880.0,110870.0,0.8860533]
[1759092812530,0.87174,110880.0,110870.0,0.8860533]
[1759092812832,0.87162,110880.0,110870.0,0.8860533]
[1759092814130,0.0251,110880.0,110870.0,0.8860533]
[1759092814335,1.20665423,110880.0,110870.0,1.22156753]
[1759092814535,0.36061423,110880.0,110870.0,1.22156753]
[1759092814836,1.20665423,110880.0,110870.0,1.22156753]
[1759092815043,1.20665423,110880.0,110870.0,0.8860533]
[1759092815236,1.20665423,110880.0,110870.0,1.22156753]
[1759092816328,1.22974649,110880.0,110870.0,1.22156753]
[1759092819534,1.22974649,110880.0,110870.0,0.82156753]
[1759092834051,1.21174649,110880.0,110870.0,0.82156753]
[1759092841055,0.36570649,110880.0,110870.0,0.82156753]
[1759092841355,1.20514649,110880.0,110870.0,0.82156753]
[1759092841755,1.20498649,110880.0,110870.0,0.82156753]
[1759092842056,0.36570649,110880.0,110870.0,0.82156753]
[1759092842356,1.20498649,110880.0,110870.0,0.82156753]
[1759092850165,1.20498649,110880.0,110870.0,0.4860533]
[1759092850365,1.20498649,110880.0,110870.0,0.82156753]
[1759092856570,1.20298649,110880.0,110870.0,0.82156753]
[1759092857671,1.20098649,110880.0,110870.0,0.82156753]
[1759092857973,0.36170649,110880.0,110870.0,0.82156753]
[1759092858175,1.19754649,110880.0,110870.0,0.82156753]
[1759092864276,1.19754649,110880.0,110870.0,0.4860533]
[1759092864478,1.19754649,110880.0,110870.0,0.82156753]
[1759092876287,1.19755622,110880.0,110870.0,0.4860533]
[1759092882485,1.19755622,110880.0,110870.0,0.1112833]
[1759092882486,1.94642018,110880.0,110870.0,0.1112833]
[1759092883086,1.61089622,110880.0,110870.0,0.4720833]
[1759092883892,1.70105142,110880.0,110870.0,0.4720833]
[1759092886301,0.86521142,110880.0,110870.0,0.4720833]
[1759092886498,1.69629142,110880.0,110870.0,0.4720833]
[1759092886700,0.86521142,110880.0,110870.0,0.4720833]
[1759092886899,1.69625142,110880.0,110870.0,0.4720833]
[1759092887194,0.86521142,110880.0,110870.0,0.4720833]
[1759092887401,1.69625142,110880.0,110870.0,0.4720833]
[1759092887998,0.86521142,110880.0,110870.0,0.4720833]
[1759092888199,1.69605142,110880.0,110870.0,0.4720833]
[1759092888399,1.69601142,110880.0,110870.0,0.4720833]
[1759092890989,0.86521142,110880.0,110870.0,0.4720833]
[1759092891190,1.69557142,110880.0,110870.0,0.4720833]
[1759092891594,1.69553142,110880.0,110870.0,0.4720833]
[1759092895607,1.69517142,110880.0,110870.0,0.4720833]
[1759092896093,1.29517142,110880.0,110870.0,0.4720833]
[1759092897007,0.46521142,110880.0,110870.0,0.4720833]
[1759092897207,1.29508713,110880.0,110870.0,0.4720833]
[1759092897404,1.63061109,110880.0,110870.0,0.4720833]
[1759092897604,1.29508713,110880.0,110870.0,0.4720833]
[1759092897805,1.63061109,110880.0,110870.0,0.4509633]
[1759092898402,1.29508713,110880.0,110870.0,0.4730433]
[1759092901511,1.20621193,110880.0,110870.0,0.4730433]
[1759092901714,0.1264319,110870.0,110860.0,0.4730452]
[1759092902011,0.39516193,110870.0,110860.0,0.4730452]
[1759092902211,1.22572193,110870.0,110860.0,0.4730452]
[1759092902610,0.39516193,110870.0,110860.0,0.4730452]
[1759092902909,1.29689427,110870.0,110860.0,0.4760452]
[1759092903113,0.46629427,110870.0,110860.0,0.4760452]
[1759092903316,1.29677427,110870.0,110860.0,0.4760452]
[1759092903506,0.46629427,110870.0,110860.0,0.4760452]
[1759092903914,0.46629427,110870.0,110860.0,0.4780452]
[1759092903915,1.29681427,110870.0,110860.0,0.4780452]
[1759092904117,0.46629427,110870.0,110860.0,0.4780452]
[1759092904515,1.29673427,110870.0,110860.0,0.4780452]
[1759092904713,0.46629427,110870.0,110860.0,0.4780452]
[1759092904915,1.29669427,110870.0,110860.0,0.4780452]
[1759092905215,0.46629427,110870.0,110860.0,0.4780452]
[1759092905515,1.29665427,110870.0,110860.0,0.4780452]
[1759092905715,1.29665427,110870.0,110860.0,0.4871483]
[1759092906715,1.29665427,110870.0,110860.0,0.4780452]
[1759092908314,1.29665427,110870.0,110860.0,0.48708543]
[1759092909317,1.29665427,110870.0,110860.0,0.4780452]
[1759092911819,1.29665427,110870.0,110860.0,0.4871469]
[1759092912520,1.29665427,110870.0,110860.0,0.4780452]
[1759092916621,1.29665427,110870.0,110860.0,0.4871437]
[1759092919426,1.29665427,110870.0,110860.0,0.4780452]
[1759092920726,1.29665427,110870.0,110860.0,0.48723953]
[1759092922026,1.29665427,110870.0,110860.0,0.4780452]
[1759092927331,0.46629427,110870.0,110860.0,0.4780452]
[1759092927526,1.29581427,110870.0,110860.0,0.4780452]
[1759092936845,1.29573427,110870.0,110860.0,0.4780452]
[1759092938245,1.29583349,110870.0,110860.0,0.4780452]
[1759092939545,1.29583349,110870.0,110860.0,0.1172452]
[1759092940243,1.38599539,110870.0,110860.0,0.1172452]
[1759092940950,0.46639349,110870.0,110860.0,0.1172452]
[1759092941152,1.29579349,110870.0,110860.0,0.1172452]
[1759092941554,0.11775031,110870.0,110860.0,0.82695838]
[1759092941849,0.04661797,110870.0,110860.0,1.22695838]
[1759092942147,0.84549797,110870.0,110860.0,1.22695838]
[1759092942544,0.87601797,110870.0,110860.0,1.22695838]
[1759092942845,1.21164115,110870.0,110860.0,1.22695838]
[1759092943641,0.38224115,110870.0,110860.0,1.22695838]
[1759092943842,1.21160115,110870.0,110860.0,1.22695838]
[1759092946047,0.04661797,110870.0,110860.0,1.22695838]
[1759092946347,1.21160115,110870.0,110860.0,1.22695838]
[1759092947142,0.38224115,110870.0,110860.0,1.22695838]
[1759092947449,1.21156115,110870.0,110860.0,1.22695838]
[1759092953753,1.21156115,110870.0,110860.0,0.8913352]
[1759092954051,1.31439325,110870.0,110860.0,0.1172452]
[1759092955149,1.38682389,110870.0,110860.0,0.1172452]
[1759092955856,1.72244707,110870.0,110860.0,0.005]
[1759092959760,2.12244707,110870.0,110860.0,0.005]
[1759092961365,2.48324707,110870.0,110860.0,0.005]
[1759092962057,0.02556,110850.0,110830.0,0.4638081]
[1759092962257,1.61314276,110840.0,110830.0,0.4851781]
[1759092962462,1.62581276,110840.0,110830.0,0.4851781]
[1759092962664,1.64929677,110840.0,110830.0,0.4851781]
[1759092963259,1.62581276,110840.0,110830.0,0.4851781]
[1759092963657,1.62581276,110840.0,110830.0,0.4871781]
[1759092963857,1.62581276,110840.0,110830.0,0.4881781]
[1759092964759,0.70646636,110840.0,110830.0,0.4881781]
[1759092965075,0.69379636,110840.0,110830.0,0.4881781]
[1759092965266,1.52295636,110840.0,110830.0,0.4881781]
[1759092968365,0.69379636,110840.0,110830.0,0.4881781]
[1759092968562,1.52295636,110840.0,110830.0,0.4881781]
[1759092973274,0.69379636,110840.0,110830.0,0.4881781]
[1759092973466,1.52291636,110840.0,110830.0,0.4881781]
[1759092978677,1.53568636,110840.0,110830.0,0.4753581]
[1759092980669,1.62587276,110840.0,110830.0,0.4753581]
[1759092980985,0.79675276,110840.0,110830.0,0.4753581]
[1759092981279,1.62579276,110840.0,110830.0,0.4753581]
[1759092981478,1.6469885,110840.0,110830.0,0.4539881]
[1759092981880,0.8179485,110840.0,110830.0,0.4761381]
[1759092982176,1.6469885,110840.0,110830.0,0.4761381]
[1759092983073,0.8179485,110840.0,110830.0,0.4761381]
[1759092983277,1.6469485,110840.0,110830.0,0.4761381]
[1759092983676,1.6469485,110840.0,110830.0,0.003]
[1759092983677,2.40601104,110840.0,110830.0,0.003]
[1759092984073,2.76681104,110840.0,110830.0,0.003]
[1759092984877,0.1227545,110830.0,110820.0,0.45108296]
[1759092985178,0.81744022,110830.0,110820.0,0.45108296]
[1759092985376,0.81744022,110830.0,110820.0,0.09028296]
[1759092985765,1.17824022,110830.0,110820.0,0.09028296]
[1759092985970,1.17824022,110830.0,110820.0,0.09528296]
[1759092986976,1.17824022,110830.0,110820.0,0.09828296]
[1759092987380,1.25166386,110830.0,110820.0,0.09828296]
[1759092987972,2.08062386,110830.0,110820.0,0.09828296]
[1759092991877,2.48062386,110830.0,110820.0,0.09828296]
[1759092992485,2.48062386,110830.0,110810.0,0.1256808]
[1759092992486,1.66124893,110830.0,110810.0,0.1256808]
[1759092992679,0.12932357,110830.0,110820.0,0.1256726]
[1759092992875,0.43248618,110830.0,110820.0,0.1256726]
[1759092993182,0.43248618,110830.0,110820.0,0.4864726]
[1759092993382,1.26150092,110830.0,110820.0,0.4864726]
[1759092993577,0.43258092,110830.0,110820.0,0.4864726]
[1759092993780,1.26150092,110830.0,110820.0,0.4864726]
[1759092994982,1.26650092,110830.0,110820.0,0.4864726]
[1759092996479,1.26646092,110830.0,110820.0,0.4864726]
[1759092996787,0.43758092,110830.0,110820.0,0.4864726]
[1759092996985,1.26646092,110830.0,110820.0,0.4864726]
[1759092997283,0.43758092,110830.0,110820.0,0.4864726]
[1759092997485,1.26646092,110830.0,110820.0,0.4864726]
[1759092998390,1.2667153,110830.0,110820.0,0.4864726]
[1759092999177,0.4378353,110830.0,110820.0,0.4864726]
[1759092999386,1.2666753,110830.0,110820.0,0.4864726]
[1759093000689,0.4378353,110830.0,110820.0,0.4864726]
[1759093000990,0.8573741,110830.0,110820.0,0.8864726]
[1759093001790,0.02854209,110830.0,110820.0,0.4864726]
[1759093001988,0.02854209,110830.0,110820.0,1.22235016]
[1759093002486,0.00509474,110830.0,110820.0,1.22235016]
[1759093005183,0.00509474,110830.0,110820.0,0.8864726]
[1759093005490,0.00509474,110830.0,110820.0,1.22235016]
[1759093005692,0.02854582,110830.0,110820.0,1.22235016]
[1759093005993,0.02854582,110830.0,110820.0,2.05103016]
[1759093006192,0.02854582,110830.0,110820.0,1.7151526]
[1759093006386,0.02854582,110830.0,110820.0,2.05103016]
[1759093009693,0.36442338,110830.0,110820.0,0.8864726]
[1759093010093,0.36442338,110830.0,110820.0,1.7150726]
[1759093010801,0.36442338,110830.0,110820.0,0.8864726]
[1759093011003,0.36442338,110830.0,110820.0,1.7150326]
[1759093011396,0.36442338,110830.0,110820.0,1.3150326]
[1759093011595,0.36442338,110830.0,110820.0,0.4864726]
[1759093013406,0.45461788,110830.0,110820.0,0.4864726]
[1759093013904,0.36442338,110830.0,110820.0,0.4864726]
[1759093017208,0.45461788,110830.0,110820.0,0.4864726]
[1759093017509,0.45461788,110830.0,110820.0,0.1256726]
[1759093018208,0.45461788,110830.0,110820.0,0.4864726]
[1759093020007,0.45461788,110830.0,110820.0,0.03547]
[1759093020008,1.68297788,110830.0,110820.0,0.03547]
[1759093020305,1.70404021,110830.0,110820.0,0.01332]
[1759093020603,2.06484021,110830.0,110820.0,0.01332]
[1759093021003,0.0902026,110820.0,110810.0,0.1254308]
[1759093021200,0.7854088,110820.0,110810.0,0.1254308]
[1759093021707,1.1854088,110820.0,110810.0,0.1254308]
[1759093025011,1.5462088,110820.0,110810.0,0.1254308]
[1759093026111,1.55534068,110820.0,110810.0,0.1254308]
[1759093026413,1.5462088,110820.0,110810.0,0.1254308]
[1759093027315,1.1854088,110820.0,110810.0,0.1254308]
[1759093027708,2.0136888,110820.0,110810.0,0.1254308]
[1759093028510,1.1854088,110820.0,110810.0,0.1254308]
[1759093028815,2.0136888,110820.0,110810.0,0.1254308]
[1759093029017,2.3744888,110820.0,110810.0,0.1254308]
[1759093029210,2.3834452,110820.0,110810.0,0.01332]
[1759093029804,2.3834452,110820.0,110810.0,0.03522]
[1759093030009,0.0902108,110810.0,110800.0,0.1254336]
[1759093030208,0.44961418,110810.0,110800.0,0.1254336]
[1759093030411,0.47087091,110810.0,110800.0,0.1254336]
[1759093030618,1.29911091,110810.0,110800.0,0.1254336]
[1759093032215,1.29911091,110810.0,110800.0,0.1274336]
[1759093032416,1.29911091,110810.0,110800.0,0.1304336]
[1759093033017,0.47087091,110810.0,110800.0,0.1304336]
[1759093033220,1.29911091,110810.0,110800.0,0.1304336]
[1759093034118,0.47087091,110810.0,110800.0,0.1304336]
[1759093034416,1.29907091,110810.0,110800.0,0.1304336]
[1759093035320,1.29907091,110810.0,110800.0,0.04022]
[1759093035820,1.69907091,110810.0,110800.0,0.01832]
[1759093036212,1.69907091,110810.0,110800.0,0.005]
[1759093037216,1.23167091,110810.0,110800.0,0.005]
[1759093037416,2.05983091,110810.0,110800.0,0.005]
[1759093038125,1.23167091,110810.0,110800.0,0.005]
[1759093038312,2.05983091,110810.0,110800.0,0.005]
[1759093039019,2.05983091,110810.0,110800.0,0.01860969]
[1759093039215,1.23167091,110810.0,110800.0,0.01860969]
[1759093039421,2.05983091,110810.0,110800.0,0.01860969]
[1759093041321,1.23167091,110810.0,110800.0,0.01860969]
[1759093041622,2.05983091,110810.0,110800.0,0.01860969]
[1759093041823,2.05983091,110810.0,110800.0,0.005]
[1759093042023,1.23167091,110810.0,110800.0,0.005]
[1759093042221,2.05975091,110810.0,110800.0,0.005]
[1759093042723,1.23167091,110810.0,110800.0,0.005]
[1759093043324,2.05975091,110810.0,110800.0,0.005]
[1759093043824,1.23167091,110810.0,110800.0,0.005]
[1759093044012,2.03849418,110810.0,110800.0,0.005]
[1759093044216,2.05962744,110810.0,110800.0,0.005]
[1759093048033,1.23154744,110810.0,110800.0,0.005]
[1759093048328,2.05954744,110810.0,110800.0,0.005]
[1759093048726,1.23154744,110810.0,110800.0,0.005]
[1759093048927,2.05954744,110810.0,110800.0,0.005]
[1759093049132,1.23154744,110810.0,110800.0,0.005]
[1759093049430,1.23154744,110810.0,110800.0,0.01823]
[1759093049722,2.05954744,110810.0,110800.0,0.01823]
[1759093050324,1.23154744,110810.0,110800.0,0.01823]
[1759093050525,2.05954744,110810.0,110800.0,0.01823]
[1759093051431,2.05950744,110810.0,110800.0,0.1301189]
[1759093052031,1.23154744,110810.0,110800.0,0.1301189]
[1759093052227,2.05946744,110810.0,110800.0,0.1301189]
[1759093052936,2.05946744,110810.0,110800.0,0.1084489]
[1759093056834,2.05942744,110810.0,110800.0,0.1084489]
[1759093057435,1.23154744,110810.0,110800.0,0.1084489]
[1759093057638,0.83154744,110810.0,110800.0,0.1301189]
[1759093057827,1.65938744,110810.0,110800.0,0.1301189]
[1759093059437,0.83154744,110810.0,110800.0,0.1301189]
[1759093059635,1.65938744,110810.0,110800.0,0.1301189]
[1759093059836,0.47074744,110810.0,110800.0,0.1301189]
[1759093060037,1.20829664,110810.0,110800.0,0.5301189]
[1759093060237,1.54442364,110810.0,110800.0,0.5301189]
[1759093060432,1.63463444,110810.0,110800.0,0.1301189]
[1759093062237,1.29863216,110810.0,110800.0,0.1301189]
[1759093062441,1.63463444,110810.0,110800.0,0.1301189]
[1759093062735,0.80687444,110810.0,110800.0,0.1301189]
[1759093062936,1.63459444,110810.0,110800.0,0.1301189]
[1759093063531,0.80687444,110810.0,110800.0,0.1301189]
[1759093063739,0.04465908,110810.0,110800.0,1.22692118]
[1759093064031,0.38066136,110810.0,110800.0,1.22692118]
[1759093064236,1.20834136,110810.0,110800.0,1.22692118]
[1759093066342,0.35721028,110810.0,110800.0,1.22692118]
[1759093067041,0.021208,110810.0,110800.0,1.22692118]
[1759093067241,0.35721028,110810.0,110800.0,1.22692118]
[1759093067440,0.35721028,110810.0,110800.0,1.56292346]
[1759093067739,0.021208,110810.0,110800.0,1.56292346]
[1759093069238,0.021208,110810.0,110800.0,1.63393475]
[1759093070331,0.35721028,110810.0,110800.0,1.63393475]
[1759093071339,0.35721028,110810.0,110800.0,1.29793247]
[1759093072439,0.35721028,110810.0,110800.0,2.12533247]
[1759093073926,0.35721028,110810.0,110800.0,2.46133475]
[1759093074135,0.35721028,110810.0,110800.0,1.63393475]
[1759093074339,0.35721028,110810.0,110800.0,2.46133475]
[1759093074640,0.35721028,110810.0,110800.0,1.63393475]
[1759093074844,0.35721028,110810.0,110800.0,2.46125475]
[1759093075140,0.33600228,110820.0,110810.0,0.1256007]
[1759093075338,0.33600228,110820.0,110810.0,0.82240298]
[1759093076434,0.33900228,110820.0,110810.0,0.82240298]
[1759093076634,0.34000228,110820.0,110810.0,0.82240298]
[1759093076944,0.34000228,110820.0,110810.0,1.22240298]
[1759093078533,0.004,110820.0,110810.0,1.22240298]
[1759093079650,0.004,110820.0,110810.0,2.04960298]
[1759093079945,0.004,110820.0,110810.0,1.22240298]
[1759093080145,0.004,110820.0,110810.0,2.04956298]
[1759093080944,0.004,110820.0,110810.0,1.22240298]
[1759093081143,0.004,110820.0,110810.0,2.04952298]
[1759093082447,0.004,110820.0,110810.0,2.04948298]
[1759093083840,0.004,110820.0,110810.0,2.04944298]
[1759093084649,0.004,110820.0,110810.0,2.04940298]
[1759093085848,0.004,110820.0,110810.0,1.22240298]
[1759093086041,0.004,110820.0,110810.0,2.04936298]
[1759093088549,0.004,110820.0,110810.0,2.41016298]
[1759093092053,0.004,110820.0,110810.0,2.0741607]
[1759093092251,0.004,110820.0,110810.0,2.41016298]
[1759093096764,0.004,110820.0,110810.0,2.01016298]
[1759093098761,0.004,110820.0,110810.0,2.34616526]
[1759093099879,0.33600228,110830.0,110820.0,0.1251126]
[1759093100058,0.35818228,110840.0,110830.0,0.0901945]
[1759093100372,1e-08,110840.0,110830.0,1.64842678]
[1759093100674,0.35818228,110860.0,110850.0,0.1250882]
[1759093100859,0.35818228,110860.0,110850.0,0.82189048]
[1759093101277,0.35818228,110860.0,110850.0,0.83084902]
[1759093102973,0.36618228,110860.0,110850.0,0.83084902]
[1759093103271,0.37818228,110860.0,110850.0,0.83084902]
[1759093103866,0.35600228,110860.0,110850.0,0.83084902]
[1759093104261,0.37818228,110860.0,110850.0,0.90182839]
[1759093104967,0.36618228,110860.0,110850.0,0.90282839]
[1759093105971,0.35818228,110860.0,110850.0,1.72918839]
[1759093107476,0.35818228,110860.0,110850.0,0.90282839]
[1759093107667,0.35818228,110860.0,110850.0,1.72910839]
[1759093108670,0.35818228,110870.0,110860.0,0.1250801]
[1759093108876,0.35818228,110870.0,110860.0,0.82188238]
[1759093109575,0.33600228,110870.0,110860.0,0.82188238]
[1759093109771,0.37924328,110880.0,110870.0,0.0901619]
[1759093109968,0.71524556,110880.0,110870.0,0.46107418]
[1759093110169,0.71524556,110880.0,110870.0,0.1250719]
[1759093110877,0.71824556,110880.0,110870.0,0.1250719]
[1759093111576,0.72024556,110880.0,110870.0,0.1250719]
[1759093112469,0.74355438,110880.0,110870.0,0.1250719]
[1759093112670,0.07154982,110880.0,110870.0,0.1250719]
[1759093112965,0.74355438,110880.0,110870.0,0.1250719]
[1759093114477,0.07154982,110880.0,110870.0,0.4858719]
[1759093114674,0.74355438,110880.0,110870.0,0.4858719]
[1759093114970,0.3864911,110880.0,110870.0,0.82187418]
[1759093115178,0.3643111,110880.0,110870.0,0.82187418]
[1759093115478,0.3864911,110880.0,110870.0,0.82187418]
[1759093117574,0.02830882,110880.0,110870.0,0.82187418]
[1759093117782,0.02718,110880.0,110870.0,0.82187418]
[1759093117968,0.36318228,110880.0,110870.0,1.64775418]
[1759093118171,0.38647389,110880.0,110870.0,1.64775418]
[1759093118572,0.72247617,110880.0,110870.0,0.4858719]
[1759093118779,0.71947617,110880.0,110870.0,1.3117519]
[1759093118979,0.71947617,110880.0,110870.0,0.4858719]
[1759093119178,0.38347389,110880.0,110870.0,0.82187418]
[1759093119380,0.71947617,110880.0,110870.0,0.4858719]
[1759093119574,0.71747617,110880.0,110870.0,0.4858719]
[1759093120372,0.38102113,110880.0,110870.0,0.4858719]
[1759093120874,0.35772952,110880.0,110870.0,0.4858719]
[1759093121580,0.38101365,110880.0,110870.0,0.4858719]
[1759093136589,0.02328413,110880.0,110870.0,0.82142142]
[1759093136786,0.02328413,110880.0,110870.0,1.22142142]
[1759093137181,0.78667952,110900.0,110890.0,0.1248947]
[1759093137386,0.37988535,110900.0,110890.0,0.4856947]
[1759093137691,1.20524535,110900.0,110890.0,0.4856947]
[1759093138381,1.21120535,110900.0,110890.0,0.4856947]
[1759093139592,0.47602195,110900.0,110890.0,0.4856947]
[1759093139888,0.47602195,110900.0,110890.0,0.55847285]
[1759093140090,0.38988535,110900.0,110890.0,0.55847285]
[1759093140490,0.38588535,110900.0,110890.0,0.55847285]
[1759093140689,0.38488535,110900.0,110890.0,0.55847285]
[1759093141082,0.38488535,110900.0,110890.0,0.4856947]
[1759093141282,0.38488535,110900.0,110890.0,0.1248947]
[1759093141484,0.38488535,110900.0,110890.0,0.4856947]
[1759093144588,0.38488535,110900.0,110890.0,0.55714601]
[1759093147391,1.20992535,110900.0,110890.0,0.55714601]
[1759093148796,1.20988535,110900.0,110890.0,0.55714601]
[1759093149697,1.20688535,110900.0,110890.0,0.55714601]
[1759093150399,1.20488535,110900.0,110890.0,0.55714601]
[1759093150693,1.20788535,110900.0,110890.0,0.55714601]
[1759093150995,1.20988535,110900.0,110890.0,0.55714601]
[1759093151599,0.38488535,110900.0,110890.0,0.55714601]
[1759093151789,1.20980535,110900.0,110890.0,0.55714601]
[1759093152488,1.29994195,110900.0,110890.0,0.55714601]
[1759093152697,0.96439243,110900.0,110890.0,0.55714601]
[1759093152896,1.29994195,110900.0,110890.0,0.55714601]